bitfinex-derivatives/quotes_BTCF0:USTF0_20250811
["timestamp","ask_amount","ask_price","bid_price","bid_amount"]
[1754876423653,0.69081519,119850.0,119840.0,1.31529385]
[1754876423853,0.78020652,119850.0,119840.0,1.31529385]
[1754876424056,0.42707519,119850.0,119840.0,1.31529385]
[1754876424251,0.06627519,119850.0,119840.0,1.31529385]
[1754876424552,0.24883519,119850.0,119840.0,1.31529385]
[1754876424754,0.33063519,119850.0,119840.0,1.31529385]
[1754876425345,0.32963519,119850.0,119840.0,1.31529385]
[1754876425544,0.33063519,119850.0,119840.0,1.31529385]
[1754876425749,0.69143519,119850.0,119840.0,1.31529385]
[1754876426343,0.96735652,119850.0,119840.0,1.31529385]
[1754876426547,0.69143519,119850.0,119840.0,1.31529385]
[1754876426747,0.96635652,119850.0,119840.0,1.31529385]
[1754876426948,0.96735652,119850.0,119840.0,1.31529385]
[1754876427149,0.69143519,119850.0,119840.0,1.31529385]
[1754876427359,0.96735652,119850.0,119840.0,1.31529385]
[1754876427655,0.96735652,119850.0,119840.0,0.86120385]
[1754876427857,0.96735652,119850.0,119840.0,1.70028385]
[1754876428253,0.69143519,119850.0,119840.0,0.86120385]
[1754876428457,0.96735652,119850.0,119840.0,1.70016385]
[1754876429548,0.96535652,119850.0,119840.0,1.70016385]
[1754876429749,0.96735652,119850.0,119840.0,1.70016385]
[1754876429950,0.96735652,119850.0,119840.0,1.70020385]
[1754876430152,0.96535652,119850.0,119840.0,1.65026385]
[1754876430456,0.69143519,119850.0,119840.0,1.70020385]
[1754876430647,0.96735652,119850.0,119840.0,1.70020385]
[1754876432154,0.82916652,119850.0,119840.0,1.70020385]
[1754876432553,0.69143519,119850.0,119840.0,1.70020385]
[1754876433258,0.96735652,119850.0,119840.0,1.70020385]
[1754876433967,0.96735652,119850.0,119840.0,0.86120385]
[1754876434262,0.69143519,119850.0,119840.0,1.69968385]
[1754876434468,0.96735652,119850.0,119840.0,1.69968385]
[1754876436761,0.96735652,119850.0,119840.0,0.61113385]
[1754876436966,0.96735652,119850.0,119840.0,1.52363385]
[1754876437667,0.96735652,119850.0,119840.0,1.55897385]
[1754876438572,0.96735652,119850.0,119840.0,1.41614385]
[1754876439065,0.96735652,119850.0,119840.0,1.52606385]
[1754876439270,0.96735652,119850.0,119840.0,1.57321385]
[1754876439567,0.96735652,119850.0,119840.0,1.31041385]
[1754876441371,0.69143519,119850.0,119840.0,1.31041385]
[1754876441569,0.96735652,119850.0,119840.0,1.31041385]
[1754876441968,0.97126652,119850.0,119840.0,1.31041385]
[1754876442165,0.97226652,119850.0,119840.0,1.31041385]
[1754876442467,0.55324519,119850.0,119840.0,1.31041385]
[1754876442669,0.97226652,119850.0,119840.0,1.31041385]
[1754876442976,0.97226652,119850.0,119840.0,1.22792385]
[1754876443667,0.97226652,119850.0,119840.0,1.26326385]
[1754876443873,0.97226652,119850.0,119840.0,1.31041385]
[1754876444571,0.97226652,119850.0,119840.0,1.26326385]
[1754876444872,0.97226652,119850.0,119840.0,1.22792385]
[1754876445971,0.97226652,119850.0,119840.0,1.15334385]
[1754876446675,0.97226652,119850.0,119840.0,1.22792385]
[1754876447172,0.31366,119840.0,119830.0,0.2503028]
[1754876447372,1.32552875,119840.0,119830.0,1.0867428]
[1754876447876,1.82552875,119840.0,119830.0,1.0867428]
[1754876448277,1.54960742,119840.0,119830.0,1.0867428]
[1754876448575,1.54970742,119840.0,119830.0,1.0868428]
[1754876449070,1.82562875,119840.0,119830.0,1.0868428]
[1754876449276,1.46627652,119840.0,119830.0,1.0868428]
[1754876449573,1.55070742,119840.0,119830.0,1.1614228]
[1754876449967,1.46727652,119840.0,119830.0,1.1614228]
[1754876450267,1.19135519,119840.0,119830.0,1.2439128]
[1754876450463,1.55070732,119840.0,119830.0,1.1967628]
[1754876450670,1.82662865,119840.0,119830.0,1.15457904]
[1754876451175,1.82662865,119840.0,119830.0,1.15449904]
[1754876452180,1.99352465,119840.0,119830.0,1.15449904]
[1754876452374,0.1570678,119830.0,119820.0,0.3337691]
[1754876452570,1.04961432,119830.0,119820.0,1.1694891]
[1754876452970,1.04961432,119830.0,119820.0,1.2440691]
[1754876453174,1.04961432,119830.0,119820.0,1.3265591]
[1754876453479,0.96617652,119830.0,119820.0,1.3265591]
[1754876453677,0.96627652,119830.0,119820.0,1.3266591]
[1754876453876,1.46727652,119830.0,119820.0,1.3266591]
[1754876454978,1.46727652,119830.0,119820.0,1.39458074]
[1754876455470,1.46827652,119830.0,119820.0,1.39458074]
[1754876456374,1.55171432,119830.0,119820.0,1.39458074]
[1754876456574,1.05171432,119830.0,119820.0,1.39458074]
[1754876456971,0.77579299,119830.0,119820.0,1.39458074]
[1754876457172,1.05171432,119830.0,119820.0,1.39458074]
[1754876458868,1.05171432,119830.0,119820.0,1.23751074]
[1754876459068,1.05171432,119830.0,119820.0,0.50754074]
[1754876459275,1.05171432,119830.0,119820.0,1.06974534]
[1754876459777,1.06069639,119830.0,119820.0,1.06974534]
[1754876460178,1.55171432,119830.0,119820.0,1.06974534]
[1754876461573,1.55171432,119830.0,119820.0,1.22681534]
[1754876461975,1.55171432,119830.0,119820.0,1.17966534]
[1754876462278,1.55171432,119830.0,119820.0,1.22681534]
[1754876462485,1.55171432,119830.0,119820.0,0.51511534]
[1754876462676,1.55171432,119830.0,119820.0,1.34955534]
[1754876462979,1.55171432,119830.0,119820.0,1.30240534]
[1754876463186,1.55171432,119830.0,119820.0,1.26706534]
[1754876464383,1.55171432,119830.0,119820.0,1.30240534]
[1754876465877,1.55171432,119830.0,119820.0,1.34915534]
[1754876467688,1.55171432,119830.0,119820.0,1.30240534]
[1754876468388,1.55171432,119830.0,119820.0,1.34915534]
[1754876468686,1.55171432,119830.0,119820.0,1.30240534]
[1754876469184,1.55171432,119830.0,119820.0,1.34915534]
[1754876469389,1.27579299,119830.0,119820.0,1.34915534]
[1754876469688,1.55171432,119830.0,119820.0,1.34915534]
[1754876470081,1.55171432,119830.0,119820.0,1.30240534]
[1754876471584,1.55171432,119830.0,119820.0,1.26706534]
[1754876471891,1.55171432,119830.0,119820.0,0.83454]
[1754876472090,1.55171432,119830.0,119820.0,0.8333]
[1754876472387,0.3870414,119810.0,119800.0,0.4747932]
[1754876472583,1.67627925,119810.0,119800.0,0.83312]
[1754876472990,1.40035792,119810.0,119800.0,0.9165784]
[1754876473381,1.40035792,119810.0,119800.0,1.0198484]
[1754876473689,1.40045792,119810.0,119800.0,1.0550084]
[1754876474291,1.40045792,119810.0,119800.0,1.1017584]
[1754876474498,1.90045792,119810.0,119800.0,1.1017584]
[1754876474993,1.90145792,119810.0,119800.0,1.1057584]
[1754876475193,1.90145792,119810.0,119800.0,1.1037584]
[1754876476093,0.51689519,119810.0,119800.0,1.5526584]
[1754876476394,0.5011,119810.0,119800.0,1.82857973]
[1754876476587,0.30789,119810.0,119800.0,1.82847973]
[1754876477092,0.1709301,119810.0,119800.0,2.29541573]
[1754876477292,0.61782,119850.0,119840.0,0.0834303]
[1754876477593,0.91209559,119850.0,119840.0,0.9159903]
[1754876477791,0.95876559,119850.0,119840.0,0.9160903]
[1754876478792,0.68284426,119850.0,119840.0,0.9160903]
[1754876479095,1.46076559,119850.0,119840.0,0.9160903]
[1754876479491,1.46476559,119850.0,119840.0,0.9170903]
[1754876480090,1.46176559,119850.0,119840.0,0.9160903]
[1754876480286,1.20474559,119850.0,119840.0,0.9160903]
[1754876480493,0.92882426,119850.0,119840.0,0.9160903]
[1754876480694,0.70474559,119850.0,119840.0,0.9160903]
[1754876481196,0.77801559,119850.0,119840.0,0.9160903]
[1754876481799,0.77601559,119850.0,119840.0,0.9160903]
[1754876482196,0.70274559,119850.0,119840.0,0.9160903]
[1754876482498,0.34194559,119850.0,119840.0,1.2768903]
[1754876484301,0.55139559,119850.0,119840.0,1.2768903]
[1754876484603,0.59896559,119850.0,119840.0,1.2768903]
[1754876487605,0.34194559,119850.0,119840.0,1.2768903]
[1754876487897,0.29537559,119850.0,119840.0,1.2768903]
[1754876488296,0.34194559,119850.0,119840.0,1.2768903]
[1754876488497,0.06602426,119850.0,119840.0,1.2768903]
[1754876488697,0.34194559,119850.0,119840.0,1.2768903]
[1754876488902,0.06602426,119850.0,119840.0,1.2768903]
[1754876489206,0.59896559,119850.0,119840.0,1.2768903]
[1754876489796,0.41573559,119850.0,119840.0,1.2768903]
[1754876489996,0.34194559,119850.0,119840.0,1.2768903]
[1754876490205,0.06602426,119850.0,119840.0,1.2768903]
[1754876490397,0.06602426,119850.0,119840.0,1.2767903]
[1754876490398,6e-08,119850.0,119840.0,1.2767903]
[1754876491001,0.32249139,119850.0,119840.0,1.2767903]
[1754876492899,0.32249139,119850.0,119840.0,1.5395903]
[1754876493093,0.32259139,119850.0,119840.0,1.5396903]
[1754876493492,0.04667006,119850.0,119840.0,1.5396903]
[1754876493693,0.32259139,119850.0,119840.0,1.5396903]
[1754876494503,0.04667006,119850.0,119840.0,1.5396903]
[1754876494703,0.32259139,119850.0,119840.0,1.5396903]
[1754876495201,0.04667006,119850.0,119840.0,1.5396903]
[1754876495402,0.32259139,119850.0,119840.0,1.5396903]
[1754876496402,0.44395139,119850.0,119840.0,1.5396903]
[1754876496602,0.58215139,119850.0,119840.0,1.5396903]
[1754876497306,0.30623006,119850.0,119840.0,1.5396903]
[1754876497494,0.58215139,119850.0,119840.0,1.5396903]
[1754876498409,0.58215139,119850.0,119840.0,0.7071303]
[1754876498704,0.94295139,119850.0,119840.0,1.1760503]
[1754876502510,0.9610567,119850.0,119840.0,1.1760503]
[1754876508721,0.01820537,119850.0,119840.0,1.5368503]
[1754876509020,0.3435767,119850.0,119840.0,1.5368503]
[1754876509214,0.5539867,119850.0,119840.0,1.1760503]
[1754876509811,0.9617467,119850.0,119840.0,1.1760503]
[1754876515024,0.6009467,119850.0,119840.0,1.5368503]
[1754876516323,0.6009467,119850.0,119840.0,1.1760503]
[1754876516521,0.9617467,119850.0,119840.0,1.1760503]
[1754876521030,0.68582537,119850.0,119840.0,1.1760503]
[1754876521218,0.9617467,119850.0,119840.0,1.1760503]
[1754876522428,0.9617467,119850.0,119840.0,0.3463303]
[1754876522625,0.68582537,119850.0,119840.0,1.1734903]
[1754876522825,0.9617467,119850.0,119840.0,1.1734903]
[1754876524523,0.96174664,119850.0,119840.0,1.1754903]
[1754876525930,0.96174664,119850.0,119840.0,1.1734903]
[1754876526630,0.68582531,119850.0,119840.0,1.1734903]
[1754876526827,0.96174664,119850.0,119840.0,1.1734903]
[1754876527729,0.96174664,119850.0,119840.0,1.1754903]
[1754876528634,0.96174664,119850.0,119840.0,1.1734903]
[1754876530234,1.32109047,119850.0,119840.0,0.0001]
[1754876530424,1.32109047,119850.0,119840.0,0.0835294]
[1754876530734,1.04516914,119850.0,119840.0,0.9096094]
[1754876531423,1.54516914,119850.0,119840.0,0.9096094]
[1754876532537,1.82109047,119850.0,119840.0,0.9096094]
[1754876532736,1.54516914,119850.0,119840.0,0.9096094]
[1754876533442,1.46174664,119850.0,119840.0,0.9096094]
[1754876533645,1.54516934,119850.0,119840.0,0.9096094]
[1754876534443,1.46174664,119850.0,119840.0,0.9096094]
[1754876534937,1.54516934,119850.0,119840.0,0.9096094]
[1754876535539,1.46174664,119850.0,119840.0,0.9096094]
[1754876535739,1.54516934,119850.0,119840.0,0.9096094]
[1754876536444,1.46174664,119850.0,119840.0,0.9096094]
[1754876537346,1.54516934,119850.0,119840.0,0.9096094]
[1754876537643,1.32354664,119850.0,119840.0,0.9096094]
[1754876537947,1.45466664,119850.0,119840.0,0.9096094]
[1754876538339,0.95466664,119850.0,119840.0,0.9096094]
[1754876538740,0.82354664,119850.0,119840.0,0.9096094]
[1754876539638,0.59386664,119850.0,119840.0,0.9096094]
[1754876539839,0.95466664,119850.0,119840.0,0.9096094]
[1754876540041,0.95466664,119850.0,119840.0,0.9116094]
[1754876541549,0.82354664,119850.0,119840.0,0.9116094]
[1754876541736,0.95466664,119850.0,119840.0,0.9116094]
[1754876542541,0.82354664,119850.0,119840.0,0.9116094]
[1754876542851,0.95466664,119850.0,119840.0,0.9116094]
[1754876543053,0.95466664,119850.0,119840.0,1.1744094]
[1754876548949,0.0057,119860.0,119850.0,0.083422]
[1754876549157,1e-07,119860.0,119850.0,0.72014333]
[1754876549346,1e-07,119860.0,119850.0,0.611094]
[1754876550253,0.27592133,119870.0,119850.0,1.0779338]
[1754876550451,0.0001,119870.0,119860.0,2.3132443]
[1754876550858,0.0001,119870.0,119860.0,2.4801003]
[1754876551541,0.0001,119870.0,119860.0,2.54744534]
[1754876552146,0.0001,119870.0,119860.0,2.4801003]
[1754876552954,0.04709,119870.0,119860.0,2.4801003]
[1754876553258,0.32301133,119870.0,119860.0,2.4801003]
[1754876553449,0.32301133,119870.0,119860.0,2.3132443]
[1754876553753,0.57272133,119870.0,119860.0,2.061335]
[1754876554057,0.2968,119870.0,119860.0,2.061335]
[1754876554353,0.57272133,119870.0,119860.0,2.061335]
[1754876555052,0.0001,119870.0,119860.0,2.90779057]
[1754876555254,0.0001,119870.0,119860.0,3.1837119]
[1754876555452,0.0759568,119880.0,119870.0,0.35932953]
[1754876555754,1e-07,119880.0,119870.0,0.72012953]
[1754876555951,1e-07,119880.0,119870.0,0.9110482]
[1754876556154,1e-07,119880.0,119870.0,0.6110482]
[1754876556356,1e-07,119880.0,119870.0,0.9110482]
[1754876556564,1e-07,119880.0,119870.0,0.9111482]
[1754876556858,1e-07,119880.0,119870.0,1.18706953]
[1754876559447,1e-07,119880.0,119870.0,1.18806953]
[1754876560354,1e-07,119880.0,119870.0,0.88806953]
[1754876561155,1e-07,119880.0,119870.0,0.6121482]
[1754876562064,0.0455401,119880.0,119870.0,0.6121482]
[1754876562261,1e-07,119880.0,119870.0,0.6121482]
[1754876563663,1e-07,119880.0,119870.0,0.88806953]
[1754876566858,1e-07,119880.0,119870.0,0.6121482]
[1754876567364,0.1210001,119880.0,119870.0,0.4453082]
[1754876567559,0.1210001,119880.0,119870.0,1.2665482]
[1754876567560,0.57825143,119880.0,119870.0,1.2665482]
[1754876568065,0.3023301,119880.0,119870.0,1.2665482]
[1754876568669,0.0455401,119880.0,119870.0,1.2665482]
[1754876568858,1e-07,119880.0,119870.0,1.2665482]
[1754876569262,0.0455401,119880.0,119870.0,1.2665482]
[1754876571860,0.57825143,119880.0,119870.0,0.4453082]
[1754876572062,0.57825143,119880.0,119870.0,0.0845082]
[1754876572363,1.29837416,119880.0,119870.0,0.9051884]
[1754876572572,1.29837416,119880.0,119870.0,0.82178]
[1754876572871,1.29837416,119880.0,119870.0,0.9051884]
[1754876573070,1.31430981,119880.0,119870.0,0.82178]
[1754876573663,1.31430981,119880.0,119870.0,0.9051884]
[1754876574262,0.06982,119870.0,119860.0,1.29033507]
[1754876574465,1.03840574,119870.0,119860.0,2.11073507]
[1754876574967,0.76248441,119870.0,119860.0,2.11073507]
[1754876575168,1.03840574,119870.0,119860.0,1.13574877]
[1754876575371,1.03840574,119870.0,119860.0,1.13674877]
[1754876575574,1.53840574,119870.0,119860.0,1.13684877]
[1754876576271,2.00526174,119870.0,119860.0,1.071739]
[1754876576470,2.00526174,119870.0,119860.0,0.988324]
[1754876576974,2.00526174,119870.0,119860.0,0.987324]
[1754876577174,2.00626174,119870.0,119860.0,0.987324]
[1754876577373,2.00628178,119870.0,119860.0,0.987324]
[1754876577768,1.83942578,119870.0,119860.0,0.987324]
[1754876579575,1.83942578,119870.0,119860.0,0.903911]
[1754876580076,1.83942578,119870.0,119860.0,0.937541]
[1754876580275,1.45601738,119870.0,119860.0,0.903911]
[1754876580468,1.53942578,119870.0,119860.0,1.065881]
[1754876580669,1.45601738,119870.0,119860.0,1.065881]
[1754876580977,1.04765605,119870.0,119860.0,1.065881]
[1754876581374,0.51696605,119870.0,119860.0,1.426681]
[1754876581576,0.01696605,119870.0,119860.0,1.426681]
[1754876581775,0.38118738,119870.0,119860.0,1.065881]
[1754876581971,0.51362738,119870.0,119860.0,1.065881]
[1754876582168,0.59521738,119870.0,119860.0,1.065881]
[1754876582569,0.48983738,119870.0,119860.0,1.065881]
[1754876582875,0.01696605,119870.0,119860.0,1.065881]
[1754876583075,0.06250605,119870.0,119860.0,1.07443756]
[1754876583576,0.31929605,119870.0,119860.0,1.065881]
[1754876583977,0.31829605,119870.0,119860.0,1.066881]
[1754876584177,1.02245983,119870.0,119860.0,1.017691]
[1754876584370,0.93905133,119870.0,119860.0,1.017691]
[1754876584570,1.02245983,119870.0,119860.0,1.017691]
[1754876584774,1.0389217,119870.0,119860.0,0.116321]
[1754876584971,1.0389217,119870.0,119860.0,1.017571]
[1754876585374,1.0389217,119870.0,119860.0,1.017491]
[1754876585575,1.0389217,119870.0,119860.0,1.017381]
[1754876585879,1.0389217,119870.0,119860.0,1.017781]
[1754876586078,1.0389217,119870.0,119860.0,1.064021]
[1754876587476,0.9555132,119870.0,119860.0,1.064021]
[1754876587880,1.0389217,119870.0,119860.0,1.064021]
[1754876588682,1.0389217,119870.0,119860.0,1.017781]
[1754876589076,0.9555132,119870.0,119860.0,1.017781]
[1754876589382,0.95551365,119870.0,119860.0,1.017781]
[1754876589684,1.03892215,119870.0,119860.0,0.903191]
[1754876589886,1.03892259,119870.0,119860.0,0.903191]
[1754876590277,1.03892259,119870.0,119860.0,0.903111]
[1754876591886,1.03940999,119870.0,119860.0,0.935871]
[1754876592981,1.03940999,119870.0,119860.0,0.934871]
[1754876593180,1.04040999,119870.0,119860.0,0.934871]
[1754876593785,1.04040999,119870.0,119860.0,0.902111]
[1754876594079,1.04040999,119870.0,119860.0,0.81822]
[1754876594284,1.04040999,119870.0,119860.0,0.0001]
[1754876594592,0.3890154,119860.0,119850.0,1.05289988]
[1754876594792,1.02573673,119860.0,119850.0,1.05289988]
[1754876595589,1.04269157,119860.0,119850.0,1.05289988]
[1754876595786,1.05140806,119860.0,119850.0,1.05299988]
[1754876596291,1.05140806,119860.0,119850.0,1.05399988]
[1754876596486,1.04279157,119860.0,119850.0,1.05399988]
[1754876596892,1.54279157,119860.0,119850.0,1.05399988]
[1754876597093,1.54379157,119860.0,119850.0,1.05299988]
[1754876597293,1.54579157,119860.0,119850.0,1.05299988]
[1754876599797,1.54579157,119860.0,119850.0,0.985062]
[1754876600792,1.26987024,119860.0,119850.0,0.985062]
[1754876600990,1.46237617,119860.0,119850.0,1.015192]
[1754876601192,1.10157617,119860.0,119850.0,1.094292]
[1754876601390,0.56217484,119860.0,119850.0,1.094292]
[1754876601689,0.02005484,119860.0,119850.0,1.094292]
[1754876601889,0.0031,119860.0,119850.0,1.37021333]
[1754876602089,0.0031,119860.0,119850.0,1.094292]
[1754876602288,0.0021,119860.0,119850.0,1.094292]
[1754876602488,0.0021,119860.0,119850.0,1.37021333]
[1754876602893,0.0001,119860.0,119850.0,1.455092]
[1754876603093,0.0001,119860.0,119850.0,1.456092]
[1754876603399,0.0001,119860.0,119850.0,1.459092]
[1754876603593,0.0001,119860.0,119850.0,1.462092]
[1754876603993,0.0001,119860.0,119850.0,1.53000999]
[1754876604502,0.27602133,119860.0,119850.0,1.53000999]
[1754876604895,0.32406133,119860.0,119850.0,1.53000999]
[1754876605200,0.59856097,119860.0,119850.0,1.21663999]
[1754876608402,0.53881097,119860.0,119850.0,1.21663999]
[1754876608598,0.26288964,119860.0,119850.0,1.21663999]
[1754876608797,0.59856097,119860.0,119850.0,1.21663999]
[1754876609302,0.59856029,119860.0,119850.0,1.21663999]
[1754876609993,0.06507896,119860.0,119850.0,1.21663999]
[1754876610194,0.04814,119860.0,119850.0,1.57743999]
[1754876610395,0.0001,119860.0,119850.0,1.57743999]
[1754876615405,0.01704576,119860.0,119850.0,1.57743999]
[1754876620103,0.4957001,119880.0,119870.0,0.0834081]
[1754876620402,0.85884143,119880.0,119870.0,1.0530381]
[1754876620708,0.93720143,119880.0,119870.0,1.0530381]
[1754876620904,0.57640143,119880.0,119870.0,1.0530381]
[1754876621102,0.57640143,119880.0,119870.0,1.0531381]
[1754876621905,0.57640143,119880.0,119870.0,1.06171264]
[1754876622106,0.57740143,119880.0,119870.0,1.06171264]
[1754876623008,0.57640143,119880.0,119870.0,1.06171264]
[1754876623307,0.57740143,119880.0,119870.0,1.06171264]
[1754876623708,0.57640143,119880.0,119870.0,1.06271264]
[1754876624402,0.3004801,119880.0,119870.0,1.06271264]
[1754876624708,0.57640143,119880.0,119870.0,1.06271264]
[1754876625307,0.85232276,119880.0,119870.0,0.0845081]
[1754876625507,1.29652386,119880.0,119870.0,0.0845081]
[1754876626007,0.93720143,119880.0,119870.0,0.0845081]
[1754876626200,1.02060253,119880.0,119870.0,0.0845081]
[1754876626614,1.79652386,119880.0,119870.0,0.0845081]
[1754876627518,1.79752386,119880.0,119870.0,0.0835081]
[1754876628109,1.2456812,119880.0,119870.0,0.0835081]
[1754876628314,1.79752386,119880.0,119870.0,0.1459581]
[1754876628508,1.79852386,119880.0,119870.0,0.1459581]
[1754876628908,1.79752386,119880.0,119870.0,0.1459581]
[1754876629109,1.79952386,119880.0,119870.0,0.0835081]
[1754876629911,1.71612276,119880.0,119870.0,0.0835081]
[1754876630114,1.44020143,119880.0,119870.0,0.1914981]
[1754876630516,1.1642801,119880.0,119870.0,0.1914981]
[1754876630817,1.44020143,119880.0,119870.0,0.1914981]
[1754876631213,1.07840143,119880.0,119870.0,0.1914981]
[1754876631517,1.07840143,119880.0,119870.0,0.2378981]
[1754876632217,1.09578036,119880.0,119870.0,0.2378981]
[1754876632414,0.59578036,119880.0,119870.0,0.2378981]
[1754876633318,0.59378036,119880.0,119870.0,0.2388981]
[1754876633721,0.45888036,119880.0,119870.0,0.2388981]
[1754876634019,0.31140903,119880.0,119870.0,0.2388981]
[1754876634218,0.58733036,119880.0,119870.0,0.2388981]
[1754876635514,0.01737903,119880.0,119870.0,0.2388981]
[1754876635818,0.06442903,119880.0,119870.0,0.5996981]
[1754876636121,0.58733036,119880.0,119870.0,1.3365581]
[1754876636317,0.58733036,119880.0,119870.0,1.3668181]
[1754876637417,0.58733036,119880.0,119870.0,1.4132181]
[1754876637817,0.58733036,119880.0,119870.0,1.3665781]
[1754876638219,0.67073146,119880.0,119870.0,1.0057781]
[1754876638922,0.58733036,119880.0,119870.0,1.0057781]
[1754876639220,0.67073146,119880.0,119870.0,1.0057781]
[1754876639409,0.94665279,119880.0,119870.0,0.0845081]
[1754876639616,1.30745279,119880.0,119870.0,0.8977881]
[1754876640122,1.03153146,119880.0,119870.0,0.8977881]
[1754876640421,1.03153146,119880.0,119850.0,0.42871799]
[1754876640422,1.30745279,119880.0,119850.0,0.42871799]
[1754876640715,0.29403,119840.0,119830.0,0.58277709]
[1754876640922,0.56995133,119840.0,119830.0,1.65853709]
[1754876641316,0.377459,119840.0,119830.0,1.39573709]
[1754876641517,0.65338033,119840.0,119830.0,1.2899084]
[1754876641716,1.01428033,119840.0,119830.0,1.2900084]
[1754876642215,1.01428033,119840.0,119830.0,1.2304284]
[1754876642409,1.01428033,119840.0,119830.0,1.0955484]
[1754876642614,1.01428033,119840.0,119830.0,1.0633584]
[1754876642816,1.01428033,119840.0,119830.0,1.1144084]
[1754876643018,1.01428033,119840.0,119830.0,1.1184084]
[1754876643521,1.01428033,119840.0,119830.0,1.1214084]
[1754876643715,1.01428033,119840.0,119830.0,1.1174084]
[1754876644223,1.01428033,119840.0,119830.0,1.23937476]
[1754876645218,1.01428033,119840.0,119830.0,1.29880345]
[1754876648225,1.01428033,119840.0,119830.0,1.23937476]
[1754876648933,0.93085133,119840.0,119830.0,1.23937476]
[1754876652026,0.57005133,119840.0,119830.0,1.23937476]
[1754876652222,0.57005133,119840.0,119830.0,1.28591476]
[1754876654624,0.44160133,119840.0,119830.0,1.28591476]
[1754876654820,0.57076133,119840.0,119830.0,1.28591476]
[1754876657522,0.57076133,119840.0,119830.0,1.23937476]
[1754876657727,0.57076133,119840.0,119830.0,0.31578476]
[1754876658030,0.57076133,119840.0,119830.0,1.35055476]
[1754876658431,0.57076133,119840.0,119830.0,0.53923476]
[1754876658630,0.57076133,119840.0,119830.0,1.35055476]
[1754876659724,0.57076133,119840.0,119830.0,1.12710476]
[1754876659921,0.57076133,119840.0,119830.0,1.27988476]
[1754876660334,0.58914918,119840.0,119830.0,1.27988476]
[1754876661024,0.58914918,119840.0,119830.0,1.23334476]
[1754876661729,0.67257768,119840.0,119830.0,1.23334476]
[1754876662031,0.67257768,119840.0,119830.0,1.17595476]
[1754876663033,1.03337768,119840.0,119830.0,1.17595476]
[1754876663924,1.03337768,119840.0,119830.0,1.23334476]
[1754876665734,0.75745635,119840.0,119830.0,1.23334476]
[1754876665937,1.03337768,119840.0,119830.0,1.23334476]
[1754876666638,1.03337768,119840.0,119830.0,1.27988476]
[1754876667723,0.75745635,119840.0,119830.0,1.27988476]
[1754876667926,1.03337768,119840.0,119830.0,1.27988476]
[1754876675542,0.67257768,119840.0,119830.0,1.27988476]
[1754876675737,1.03337768,119840.0,119830.0,1.27988476]
[1754876676043,0.75745635,119840.0,119830.0,1.27988476]
[1754876676236,1.03337768,119840.0,119830.0,1.27988476]
[1754876677140,0.01848785,119840.0,119830.0,1.91660609]
[1754876677338,0.3608,119860.0,119850.0,0.1990816]
[1754876677643,0.81492072,119860.0,119850.0,1.1573716]
[1754876677841,1.02262542,119860.0,119850.0,1.1573716]
[1754876678732,1.02262542,119860.0,119850.0,1.1119816]
[1754876678936,1.02262542,119860.0,119850.0,1.1120816]
[1754876679243,1.02262542,119860.0,119850.0,1.1119216]
[1754876680750,1.02362542,119860.0,119850.0,1.1119216]
[1754876682548,1.02362542,119860.0,119850.0,0.3028016]
[1754876682847,1.02362542,119860.0,119850.0,1.1114816]
[1754876683446,1.02362542,119860.0,119850.0,0.0835216]
[1754876683644,1.02362542,119860.0,119850.0,0.8920816]
[1754876684444,1.52362542,119860.0,119850.0,0.8920816]
[1754876685851,1.52362542,119860.0,119850.0,0.0835216]
[1754876686042,1.52362542,119860.0,119850.0,0.8920416]
[1754876686646,2.33186542,119860.0,119850.0,0.0001]
[1754876686848,1.52362542,119860.0,119850.0,0.0001]
[1754876687851,1.69049742,119860.0,119850.0,0.0001]
[1754876692141,1.41457609,119860.0,119850.0,0.0001]
[1754876692342,1.52362542,119860.0,119850.0,0.0835215]
[1754876692547,1.52362542,119860.0,119850.0,0.3028015]
[1754876692847,1.52362542,119860.0,119850.0,0.0001]
[1754876693056,1.52362542,119860.0,119850.0,0.0835215]
[1754876693441,1.24770409,119860.0,119850.0,0.0835215]
[1754876693644,1.52362542,119860.0,119850.0,0.0835215]
[1754876694058,1.52362542,119860.0,119850.0,0.1301115]
[1754876694759,1.52362542,119860.0,119850.0,0.1871415]
[1754876695055,1.52362542,119860.0,119850.0,0.2570515]
[1754876695455,1.52362542,119860.0,119850.0,0.3028015]
[1754876695656,1.24770409,119860.0,119850.0,0.3481915]
[1754876695857,1.52362542,119860.0,119850.0,0.3481915]
[1754876696152,1.24770409,119860.0,119850.0,0.3028015]
[1754876696456,1.52362542,119860.0,119850.0,0.3481915]
[1754876698057,0.94021072,119860.0,119850.0,0.3481915]
[1754876698556,0.66428939,119860.0,119850.0,0.35670331]
[1754876698752,0.29480072,119860.0,119850.0,0.35670331]
[1754876698957,0.57941072,119860.0,119850.0,0.35670331]
[1754876699251,0.30348939,119860.0,119850.0,0.35670331]
[1754876699453,0.06504939,119860.0,119850.0,0.71750331]
[1754876699645,0.34097072,119860.0,119850.0,0.71750331]
[1754876699851,0.01887939,119860.0,119850.0,0.71750331]
[1754876700252,0.29480072,119860.0,119850.0,0.71750331]
[1754876700960,0.29480072,119860.0,119850.0,0.72050331]
[1754876701656,0.34097072,119860.0,119850.0,0.72050331]
[1754876702852,0.29480072,119860.0,119850.0,0.72050331]
[1754876703157,0.01887939,119860.0,119850.0,0.72050331]
[1754876703550,0.01787939,119860.0,119850.0,0.72050331]
[1754876704259,0.01787939,119860.0,119850.0,1.18737531]
[1754876704457,0.27602133,119870.0,119850.0,1.35421411]
[1754876704758,0.29336171,119870.0,119860.0,1.4703946]
[1754876704957,0.29326171,119870.0,119860.0,1.4704946]
[1754876705257,0.01734038,119870.0,119860.0,1.4704946]
[1754876706453,0.29326171,119870.0,119860.0,1.4704946]
[1754876706650,0.33838171,119870.0,119860.0,1.4704946]
[1754876706851,0.29326171,119870.0,119860.0,1.4704946]
[1754876707453,0.01734038,119870.0,119860.0,1.4704946]
[1754876707648,0.29326171,119870.0,119860.0,1.4704946]
[1754876707954,0.29326171,119870.0,119860.0,1.4774946]
[1754876708655,0.29326171,119870.0,119860.0,1.7402946]
[1754876708855,0.01734038,119870.0,119860.0,1.7402946]
[1754876709158,0.29326171,119870.0,119860.0,1.7402946]
[1754876710859,0.01734038,119870.0,119860.0,1.7402946]
[1754876711061,0.29326171,119870.0,119860.0,1.7402946]
[1754876711862,0.01734038,119870.0,119860.0,1.7402946]
[1754876712159,0.29326171,119870.0,119860.0,1.7402946]
[1754876713556,0.01734038,119870.0,119860.0,1.7402946]
[1754876714359,0.43798143,119880.0,119870.0,0.2001376]
[1754876714660,0.56375143,119880.0,119870.0,0.9550876]
[1754876716553,0.58098565,119880.0,119870.0,0.9550876]
[1754876717859,0.33827565,119880.0,119870.0,0.9550876]
[1754876718660,0.29315565,119880.0,119870.0,0.9550876]
[1754876719158,0.01723432,119880.0,119870.0,0.9550876]
[1754876719563,0.29315565,119880.0,119870.0,0.9550876]
[1754876719762,0.06235432,119880.0,119870.0,0.9550876]
[1754876720459,0.40723565,119880.0,119870.0,0.9550876]
[1754876720663,0.43939565,119880.0,119870.0,0.9550876]